bitfinex/quotes_SOLUSD_20260223
["timestamp","ask_amount","ask_price","bid_price","bid_amount"]
[1771863690947,0.95591964,79.697,79.67,14.29882118]
[1771863691256,0.95591964,79.697,79.647,12.5554007]
[1771863691456,0.95591964,79.697,79.66,14.29882118]
[1771863691660,0.95591964,79.689,79.66,14.29882118]
[1771863691846,0.95591964,79.689,79.647,12.5554007]
[1771863691847,0.95591964,79.689,79.65,14.29882118]
[1771863692047,0.95591964,79.679,79.65,14.29882118]
[1771863692545,12.54594954,79.707,79.671,1.00129237]
[1771863692874,0.2,79.71,79.69,14.29882118]
[1771863693070,12.54563474,79.709,79.69,14.29882118]
[1771863693251,0.2,79.72,79.7,14.29882118]
[1771863693564,0.2,79.72,79.71,14.29882118]
[1771863693751,0.2,79.72,79.701,1.00129237]
[1771863694752,0.2,79.72,79.69,14.29882118]
[1771863694955,0.2,79.72,79.658,43.93783423]
[1771863694956,44.86619213,79.708,79.67,14.29882118]
[1771863695155,13.50171178,79.708,79.68,14.29882118]
[1771863695549,12.54579214,79.708,79.68,14.29882118]
[1771863695976,0.95591964,79.707,79.67,26.85051662]
[1771863696182,0.95591964,79.707,79.68,14.29882118]
[1771863696777,0.95591964,79.707,79.67,14.29882118]
[1771863696982,12.54610694,79.706,79.68,14.29882118]
[1771863697748,43.91137429,79.706,79.68,14.29882118]
[1771863697948,0.95591964,79.705,79.671,1.00129237]
[1771863698749,0.95591964,79.705,79.671,13.5529109]
[1771863699083,12.54642176,79.704,79.671,13.5529109]
[1771863699571,12.54642176,79.704,79.67,14.29882118]
[1771863699572,0.95591964,79.699,79.67,14.29882118]
[1771863700164,43.91247616,79.704,79.68,14.29882118]
[1771863700165,12.54642176,79.704,79.68,14.29882118]
[1771863700366,0.95591964,79.709,79.68,14.29882118]
[1771863701174,13.50171178,79.708,79.68,14.29882118]
[1771863701378,44.86619213,79.708,79.671,1.00129237]
[1771863701584,0.95591964,79.699,79.67,26.85054577]
[1771863701956,44.86619213,79.708,79.67,26.85054577]
[1771863702166,13.50171178,79.708,79.68,14.29882118]
[1771863702362,12.54525148,79.712,79.681,1.00129237]
[1771863702571,14.29882118,79.7,79.67,14.29882118]
[1771863703277,12.54720887,79.699,79.67,15.30011355]
[1771863703482,12.54720887,79.699,79.671,13.5529109]
[1771863704896,14.29882118,79.7,79.671,13.5529109]
[1771863705187,14.29882118,79.7,79.671,1.00129237]
[1771863705388,14.29882118,79.7,79.672,12.55146099]
[1771863705594,0.9545522,79.699,79.66,14.29882118]
[1771863705930,0.9545522,79.689,79.654,12.5541436]
[1771863706063,43.91027249,79.708,79.647,1.00129237]
[1771863706064,0.9545522,79.679,79.647,1.00129237]
[1771863706478,14.29882118,79.69,79.661,1.00129237]
[1771863707088,12.54878339,79.689,79.661,1.00129237]
[1771863707586,0.95337036,79.688,79.65,14.29882118]
[1771863707786,15.24123569,79.67,79.64,27.35530625]
[1771863707966,15.24123569,79.67,79.641,0.98945721]
[1771863708287,12.54878339,79.689,79.661,0.98945721]
[1771863708588,12.54594954,79.707,79.68,14.29882118]
[1771863708887,12.54594954,79.707,79.68,15.28827839]
[1771863709586,12.54594954,79.707,79.68,0.98945721]
[1771863709990,13.48836405,79.707,79.671,12.55161853]
[1771863710287,14.29882118,79.7,79.671,12.55161853]
[1771863711176,0.94241451,79.697,79.66,14.29882118]
[1771863711377,0.94241451,79.697,79.66,15.28827839]
[1771863711772,0.94241451,79.697,79.661,0.98945721]
[1771863712269,14.29882118,79.69,79.661,0.98945721]
[1771863712472,0.94241451,79.689,79.651,0.98945721]
[1771863712673,0.94241451,79.689,79.66,15.28827839]
[1771863713606,43.92129303,79.688,79.66,15.28827839]
[1771863714671,0.94241451,79.687,79.644,0.98945721]
[1771863714892,0.94241451,79.687,79.651,0.98945721]
[1771863714893,14.29882118,79.68,79.651,0.98945721]
[1771863717183,12.54888562,79.689,79.652,0.98945721]
[1771863717586,14.29882118,79.68,79.652,0.98945721]
[1771863717782,14.29882118,79.7,79.661,0.98945721]
[1771863717987,14.29882118,79.71,79.671,0.98945721]
[1771863718802,14.29882118,79.7,79.671,0.98945721]
[1771863719397,14.29882118,79.69,79.661,0.98945721]
[1771863720196,26.84749393,79.69,79.663,0.98945721]
[1771863720600,14.29882118,79.67,79.646,0.98945721]
[1771863720990,14.29882118,79.66,79.637,0.98945721]
[1771863721601,14.29882118,79.67,79.637,0.98945721]
[1771863721805,14.29882118,79.68,79.651,0.98945721]
[1771863722003,0.94241451,79.669,79.64,14.29882118]
[1771863722206,0.94241451,79.659,79.636,9.64436103]
[1771863722404,0.94241451,79.659,79.62,70.85882118]
[1771863722405,0.94241451,79.649,79.62,56.56]
[1771863722703,14.29882118,79.63,79.62,56.56]
[1771863723202,14.29882118,79.63,79.607,12.56164824]
[1771863723798,14.29882118,79.63,79.603,12.56222929]
[1771863724099,14.29882118,79.63,79.603,13.5516865]
[1771863724307,14.29882118,79.63,79.604,0.98945721]
[1771863724698,14.29882118,79.64,79.611,0.98945721]
[1771863724900,0.94241451,79.639,79.603,12.56222929]
[1771863725108,14.29882118,79.62,79.596,13.5528328]
[1771863725425,14.29882118,79.62,79.596,0.98945721]
[1771863726002,14.29882118,79.62,79.559,55.63793072]
[1771863726003,0.94241451,79.609,79.575,12.5667391]
[1771863726208,14.29882118,79.62,79.526,50.29761735]
[1771863726209,13.50708879,79.589,79.557,0.98945721]
[1771863726412,0.94241451,79.579,79.55,12.57069369]
[1771863726729,14.29882118,79.57,79.553,12.57023619]
[1771863727021,14.29882118,79.58,79.554,0.98945721]
[1771863727725,14.29882118,79.56,79.532,0.98945721]
[1771863727926,14.29882118,79.55,79.522,0.98945721]
[1771863728108,14.29882118,79.54,79.52,0.2]
[1771863728476,14.29882118,79.53,79.52,0.2]
[1771863728605,14.29882118,79.53,79.52,1e-08]
[1771863730323,0.94241451,79.572,79.521,0.98945721]
[1771863730507,14.29882118,79.57,79.521,0.98945721]
[1771863730709,14.29882118,79.57,79.54,14.29882118]
[1771863730903,3.69383402,79.603,79.541,0.98945721]
[1771863731111,15.24123569,79.58,79.55,14.29882118]
[1771863731310,0.94241451,79.579,79.52,1e-08]
[1771863731627,14.29882118,79.56,79.53,14.29882118]
[1771863732532,0.94241451,79.579,79.55,14.29882118]
[1771863732732,0.94241451,79.579,79.54,14.29882118]
[1771863732932,0.94241451,79.579,79.55,14.29882118]
[1771863733431,0.94241451,79.579,79.542,0.98945721]
[1771863734019,0.94241451,79.579,79.55,14.29882118]
[1771863734330,14.29882118,79.58,79.55,14.29882118]
[1771863734528,14.29882118,79.58,79.543,13.56127371]
[1771863734718,1.79225025,79.55,79.543,12.5718165]
[1771863734925,0.94241451,79.569,79.543,12.5718165]
[1771863735728,14.29882118,79.58,79.55,14.29882118]
[1771863735931,14.29882118,79.59,79.551,0.98945721]
[1771863736126,0.94241451,79.588,79.552,12.5703942]
[1771863736338,0.94241451,79.588,79.55,14.29882118]
[1771863736339,0.94241451,79.579,79.547,12.57118429]
[1771863736543,0.94241451,79.569,79.542,12.57194627]
[1771863736843,15.24123569,79.58,79.542,12.57194627]
[1771863737038,0.94241451,79.579,79.542,13.56140348]
[1771863738446,0.95899554,79.577,79.542,13.56140348]
[1771863739239,0.95899554,79.577,79.542,12.57194627]
[1771863739448,0.95899554,79.596,79.56,14.29882118]
[1771863739622,0.95899554,79.589,79.56,14.29882118]
[1771863740023,0.95899554,79.589,79.551,0.91707182]
[1771863740228,0.88175238,79.569,79.533,0.9446815]
[1771863740735,31.41333085,79.585,79.523,0.9446815]
[1771863740736,14.29882118,79.55,79.523,0.9446815]
[1771863740933,0.88175238,79.559,79.524,12.57482018]
[1771863741250,0.88175238,79.559,79.524,13.51950168]
[1771863742448,12.56944619,79.558,79.524,13.51950168]
[1771863742641,14.32795304,79.55,79.524,12.57482018]
[1771863742847,0.88175238,79.557,79.524,12.57482018]
[1771863743749,0.88175238,79.539,79.52,1e-08]
[1771863743947,0.88175238,79.549,79.52,1e-08]
[1771863744140,0.88175238,79.549,79.52,12.57539817]
[1771863744342,13.45114619,79.559,79.521,0.9446815]
[1771863744535,13.45114619,79.559,79.522,13.51981794]
[1771863744848,13.45114619,79.559,79.53,14.32795304]
[1771863745040,12.56939381,79.559,79.531,0.9446815]
[1771863745766,12.56838335,79.565,79.531,0.9446815]
[1771863746049,14.32795304,79.55,79.522,12.57513644]
[1771863746258,0.88175238,79.549,79.522,12.57513644]
[1771863746934,14.32795304,79.54,79.52,1e-08]
[1771863747553,0.88175238,79.547,79.52,1e-08]
[1771863748138,14.32795304,79.54,79.52,1e-08]
[1771863748353,0.88175238,79.539,79.52,1e-08]
[1771863748768,0.88175238,79.529,79.494,0.9446815]
[1771863748938,14.32795304,79.52,79.485,0.9446815]
[1771863749862,12.57561086,79.519,79.485,0.9446815]
[1771863750162,13.45736324,79.519,79.485,0.9446815]
[1771863750545,14.32795304,79.51,79.485,0.9446815]
[1771863750751,14.32795304,79.51,79.482,0.9446815]
[1771863751077,62.86260122,79.539,79.48,14.52795304]
[1771863751078,14.32795304,79.5,79.48,0.2]
[1771863751241,0.88175238,79.509,79.481,12.58162328]
[1771863751440,0.88175238,79.518,79.482,0.9446815]
[1771863751757,14.32795304,79.51,79.482,0.9446815]
[1771863751961,14.32795304,79.5,79.48,0.2]
[1771863752253,12.57561086,79.519,79.482,0.9446815]
[1771863752254,13.45736324,79.519,79.482,0.9446815]
[1771863752564,0.88175238,79.518,79.482,0.9446815]
[1771863752740,14.32795304,79.51,79.482,0.9446815]
[1771863753845,14.32795304,79.51,79.483,12.58130669]
[1771863754244,13.45894489,79.509,79.483,12.58130669]
[1771863754439,14.32795304,79.5,79.48,0.2]
[1771863754844,0.88175238,79.508,79.48,0.2]
[1771863755054,0.88175238,79.508,79.48,12.78166437]
[1771863755255,0.88175238,79.508,79.48,0.2]
[1771863755862,0.88175238,79.508,79.481,12.58162328]
[1771863756161,12.57750889,79.507,79.481,12.58162328]
[1771863756370,0.88175238,79.517,79.482,0.9446815]
[1771863756862,0.88175238,79.527,79.491,0.9446815]
[1771863757047,0.88175238,79.555,79.521,0.9446815]
[1771863757245,0.88175238,79.566,79.531,0.9446815]
[1771863757444,0.88175238,79.566,79.54,14.32795304]
[1771863757855,0.88175238,79.559,79.53,14.32795304]
[1771863758059,0.88175238,79.559,79.531,12.57371339]
[1771863758451,0.88175238,79.558,79.531,12.57371339]
[1771863759258,0.88175238,79.549,79.52,14.32795304]
[1771863759446,0.88175238,79.539,79.512,12.57661416]
[1771863760052,0.88175238,79.539,79.512,12.07661416]
[1771863760557,45.75497372,79.55,79.513,0.9446815]
[1771863760558,0.88175238,79.548,79.513,0.9446815]
[1771863760768,0.88175238,79.558,79.53,14.32795304]
[1771863761069,0.88175238,79.558,79.53,13.82795304]
[1771863761874,13.45125216,79.558,79.53,13.82795304]
[1771863762044,12.56976218,79.556,79.522,0.9446815]
[1771863762349,0.88175238,79.557,79.53,14.32795304]
[1771863762756,12.56976218,79.556,79.53,14.32795304]
[1771863763345,0.88175238,79.557,79.53,14.32795304]
[1771863763563,0.88175238,79.567,79.531,0.9446815]
[1771863763761,13.44823955,79.577,79.55,14.32795304]
[1771863763951,0.88175238,79.568,79.541,12.57213261]
[1771863765369,0.88175238,79.567,79.54,14.32795304]
[1771863765545,0.88175238,79.567,79.54,26.90018071]
[1771863766246,0.88175238,79.559,79.532,12.57347512]
[1771863767142,0.88175238,79.559,79.531,12.57371339]
[1771863767568,14.32795304,79.56,79.482,12.58146498]
[1771863767569,14.32795304,79.54,79.482,12.58146498]
[1771863767748,14.32795304,79.52,79.491,0.86292599]
[1771863768267,0.87004415,79.538,79.502,13.4412259]
[1771863768565,0.87004415,79.549,79.511,0.86292599]
[1771863768749,0.87004415,79.554,79.521,0.86292599]
[1771863768956,0.87004415,79.549,79.52,14.32795304]
[1771863769148,0.87004415,79.549,79.512,0.86292599]
[1771863769665,0.87004415,79.539,79.51,14.32795304]
[1771863769865,0.87004415,79.529,79.5,26.90652274]
[1771863770072,14.32795304,79.54,79.51,14.32795304]
[1771863770753,0.87004415,79.542,79.503,0.86292599]
[1771863771070,14.32795304,79.54,79.503,0.86292599]
[1771863771273,15.19799719,79.54,79.503,0.86292599]
[1771863771571,0.87004415,79.539,79.503,0.86292599]
[1771863772660,12.5726068,79.538,79.504,12.57798349]
[1771863772858,0.87004415,79.529,79.494,0.86292599]
[1771863773485,0.87004415,79.519,79.49,12.58013519]
[1771863774370,0.87004415,79.519,79.49,13.44306118]
[1771863774552,15.19799719,79.51,79.48,0.2]
[1771863774762,0.87004415,79.51,79.482,0.86292599]
[1771863775169,12.57448685,79.527,79.491,0.86292599]
[1771863776266,14.32795304,79.53,79.491,0.86292599]
[1771863776650,12.57402959,79.529,79.493,0.86292599]
[1771863776960,12.57336612,79.534,79.501,0.86292599]
[1771863777259,12.57336612,79.534,79.492,44.02958788]
[1771863777260,0.87004415,79.529,79.492,44.02958788]
[1771863777575,12.57336612,79.534,79.48,0.2]
[1771863777576,0.87004415,79.509,79.48,0.2]
[1771863777754,14.32795304,79.5,79.48,0.2]
[1771863777960,0.87004415,79.508,79.48,0.2]
[1771863778360,14.32795304,79.5,79.48,0.2]
[1771863778681,14.32795304,79.5,79.48,12.78165861]
[1771863778875,14.32795304,79.5,79.48,0.2]
[1771863779074,163.44594338,79.537,79.48,0.2]
[1771863779075,0.87004415,79.518,79.481,0.86292599]
[1771863779370,0.87004415,79.528,79.491,0.86292599]
[1771863779577,0.87004415,79.548,79.501,0.86292599]
[1771863779787,0.87004415,79.548,79.511,0.86292599]
[1771863779954,14.32795304,79.54,79.511,0.86292599]
[1771863780270,0.87004415,79.539,79.501,0.86292599]
[1771863780472,14.32795304,79.55,79.511,0.86292599]
[1771863780665,0.87004415,79.559,79.522,44.01297754]
[1771863780865,26.89711721,79.56,79.522,44.01297754]
[1771863780866,0.87004415,79.557,79.523,0.86292599]
[1771863781977,0.87004415,79.549,79.522,12.57513644]
[1771863782159,14.32795304,79.54,79.522,12.57513644]
[1771863782976,43.99306166,79.558,79.514,44.01740572]
[1771863782977,0.87004415,79.548,79.514,44.01740572]
[1771863783356,0.87004415,79.548,79.515,0.86292599]
[1771863783556,12.57011457,79.554,79.515,0.86292599]
[1771863783970,0.87004415,79.557,79.521,0.86292599]
[1771863784591,14.32795304,79.54,79.512,0.86292599]
[1771863784884,14.32795304,79.54,79.515,12.57624347]
[1771863785679,27.77032582,79.54,79.51,26.90487793]
[1771863785876,13.44237278,79.54,79.51,26.90487793]
[1771863786061,0.87004415,79.549,79.521,0.86292599]
[1771863786260,0.87004415,79.559,79.521,0.86292599]
[1771863786460,12.5698993,79.556,79.521,0.86292599]
[1771863786762,0.87004415,79.555,79.521,0.86292599]
[1771863787275,12.57007818,79.554,79.522,13.43806243]
[1771863787477,0.87004415,79.553,79.522,0.86292599]
[1771863787682,0.87004415,79.539,79.513,12.57643687]
[1771863787885,0.87004415,79.561,79.531,0.86292599]
[1771863788071,12.56913021,79.56,79.531,0.86292599]
[1771863789166,0.87004415,79.559,79.511,31.44219038]
[1771863789370,15.19799719,79.54,79.512,12.57671797]
[1771863789764,44.86310581,79.558,79.521,0.86292599]
[1771863789987,0.87004415,79.557,79.521,0.86292599]
[1771863790290,0.87004415,79.549,79.521,0.86292599]
[1771863790484,0.87004415,79.549,79.513,0.86292599]
[1771863790791,0.87004415,79.549,79.52,14.32795304]
[1771863790970,0.87004415,79.549,79.512,12.57671797]
[1771863791168,0.87004415,79.539,79.511,12.57687615]
[1771863791367,0.87004415,79.537,79.505,12.57782529]
[1771863791568,12.57086826,79.549,79.511,0.86292599]
[1771863791983,0.87004415,79.548,79.511,0.86292599]
[1771863792593,0.5,79.55,79.531,0.86292599]
[1771863793667,0.5,79.55,79.532,12.57355529]
[1771863797496,0.8729904,79.559,79.532,44.00744353]
[1771863797798,0.8729904,79.559,79.532,12.57355529]
[1771863797993,0.89941194,79.579,79.55,14.32795304]
[1771863798173,0.89941194,79.579,79.54,14.32795304]
[1771863799278,0.89941194,79.559,79.532,12.57355529]
[1771863799594,0.89941194,79.557,79.521,12.57529457]
[1771863799788,0.93010386,79.529,79.501,12.57845813]
[1771863799991,0.93010386,79.529,79.493,12.57965929]
[1771863800187,14.32795304,79.52,79.493,12.57965929]
[1771863800395,0.93010386,79.519,79.493,12.57965929]
[1771863801081,0.93010386,79.519,79.48,14.52795304]
[1771863801082,0.93010386,79.519,79.483,12.58130669]
[1771863801283,0.93010386,79.509,79.483,12.58130669]
[1771863801483,0.93010386,79.519,79.483,12.58130669]
[1771863801789,0.93010386,79.517,79.483,12.58130669]
[1771863803610,0.93010386,79.517,79.49,14.34137021]
[1771863803821,12.57608531,79.516,79.491,12.5800405]
[1771863803982,0.93010386,79.515,79.491,12.5800405]
[1771863805398,0.93010386,79.515,79.481,31.4540582]
[1771863805399,0.93010386,79.515,79.482,12.58146498]
[1771863805606,0.93010386,79.509,79.482,44.03512744]
[1771863806595,0.93010386,79.509,79.49,0.5]
[1771863807206,0.93010386,79.509,79.491,12.5800405]
[1771863807396,0.93010386,79.509,79.5,0.5]
[1771863807598,0.93010386,79.517,79.5,0.5]
[1771863808202,0.93010386,79.517,79.51,0.5]
[1771863809094,0.93010386,79.515,79.5,0.5]
[1771863811200,12.57434581,79.527,79.5,0.5]
[1771863811395,0.93010386,79.538,79.501,12.68617416]
[1771863811700,0.93010386,79.538,79.501,12.57845813]
[1771863812407,0.93010386,79.547,79.52,14.34137021]
[1771863812707,0.93010386,79.547,79.53,14.34137021]
[1771863813011,0.93010386,79.555,79.53,14.34137021]
[1771863813210,0.93010386,79.555,79.531,12.57371339]
[1771863813509,0.93010386,79.563,79.54,14.34137021]
[1771863813712,0.93010386,79.563,79.531,44.00799687]
[1771863814107,0.93010386,79.563,79.54,14.34137021]
[1771863814692,0.93010386,79.563,79.531,44.00799687]
[1771863815097,0.93010386,79.559,79.531,12.57371339]
[1771863815603,0.93010386,79.568,79.532,0.1027554]
[1771863815912,0.93010386,79.566,79.54,14.34137021]
[1771863816106,0.93010386,79.579,79.55,14.34137021]
[1771863816711,0.93010386,79.578,79.55,14.34137021]
[1771863817101,0.93010386,79.578,79.551,12.57055222]
[1771863818399,0.93010386,79.576,79.55,14.34137021]
[1771863818600,0.93010386,79.576,79.547,12.57103974]
[1771863819004,0.93010386,79.576,79.55,14.34137021]
[1771863819312,0.93010386,79.576,79.551,12.57055222]
[1771863819719,0.93010386,79.584,79.56,14.34137021]
[1771863820214,0.93010386,79.579,79.551,12.57055222]
[1771863820516,0.93010386,79.569,79.542,12.57197455]
[1771863820721,0.93010386,79.569,79.538,12.57247463]
[1771863821022,0.93010386,79.569,79.54,14.34137021]
[1771863821495,14.34137021,79.57,79.541,12.57213261]
[1771863821496,0.93010386,79.567,79.541,12.57213261]
[1771863822806,0.93010386,79.565,79.541,12.57213261]
[1771863823123,0.93010386,79.559,79.52,45.77968542]
[1771863823712,0.93010386,79.549,79.513,12.5765598]
[1771863823919,0.93010386,79.549,79.52,14.34137021]
[1771863824108,0.5,79.556,79.53,14.34137021]
[1771863824313,0.5,79.556,79.54,14.34137021]
[1771863825906,0.93010386,79.555,79.53,14.34137021]
[1771863828112,0.93010386,79.555,79.531,12.57371339]
[1771863829295,0.5,79.566,79.55,14.34137021]
[1771863829916,1.416024,79.566,79.55,14.34137021]
[1771863830115,1.416024,79.566,79.551,12.57055222]
[1771863830313,0.916024,79.565,79.54,14.34137021]
[1771863830520,0.916024,79.565,79.531,12.57371339]
[1771863830821,0.916024,79.559,79.527,12.57420716]
[1771863833326,0.916024,79.557,79.521,44.01353101]
[1771863833504,0.916024,79.557,79.53,14.34137021]
[1771863834918,0.916024,79.557,79.521,12.57529457]
[1771863835116,0.916024,79.557,79.53,14.34137021]
[1771863835805,0.916024,79.565,79.54,14.34137021]
[1771863836011,0.5,79.566,79.55,14.34137021]
[1771863837704,0.5,79.566,79.551,12.57055222]
[1771863837912,0.916024,79.573,79.551,12.57055222]
[1771863838220,12.56676091,79.575,79.56,14.34137021]
[1771863838423,0.916024,79.574,79.551,12.57055222]
[1771863839027,0.916024,79.592,79.56,14.34137021]
[1771863839224,0.916024,79.592,79.551,12.57055222]
[1771863839225,0.916024,79.592,79.57,14.34137021]
[1771863839810,0.916024,79.592,79.571,12.56739264]
[1771863840529,0.916024,79.592,79.57,14.34137021]
[1771863841116,0.916024,79.592,79.571,12.56739264]
[1771863841518,0.916024,79.605,79.58,14.34137021]
[1771863841718,0.916024,79.603,79.58,14.34137021]
[1771863842122,14.34137021,79.59,79.551,12.57055222]
[1771863842318,0.916024,79.589,79.551,12.57055222]
[1771863843427,0.916024,79.579,79.551,12.57055222]
[1771863843839,13.48221788,79.579,79.551,12.57055222]
[1771863844027,0.916024,79.578,79.551,12.57055222]
[1771863844533,12.56619388,79.579,79.492,50.31898109]
[1771863844534,0.916024,79.569,79.53,14.84137021]
[1771863844709,0.916024,79.569,79.54,27.41350399]
[1771863845439,0.916024,79.569,79.54,13.07213378]
[1771863845637,0.87757144,79.559,79.53,0.5]
[1771863845821,0.87757144,79.549,79.518,12.57563421]
[1771863846015,0.87757144,79.549,79.521,0.67121514]
[1771863846209,0.87757144,79.559,79.53,14.34137021]
[1771863846415,0.87757144,79.549,79.52,14.34137021]
[1771863847035,0.87757144,79.549,79.511,13.24722148]
[1771863847333,0.87757144,79.549,79.51,14.34137021]
[1771863847545,0.87757144,79.539,79.51,14.34137021]
[1771863847714,0.87757144,79.539,79.511,12.57687615]
[1771863848112,0.87757144,79.537,79.511,12.57687615]
[1771863848344,0.87757144,79.537,79.505,3.69383402]
[1771863848517,12.57201497,79.542,79.52,14.34137021]
[1771863848834,0.87757144,79.541,79.511,0.66863556]
[1771863849035,0.87757144,79.539,79.505,3.69383402]
[1771863849222,0.87757144,79.539,79.5,14.84137021]
[1771863849843,14.34137021,79.53,79.5,0.5]
[1771863850027,0.87757144,79.527,79.5,27.41993013]
[1771863850718,0.87757144,79.553,79.521,0.66710889]
[1771863850925,0.87757144,79.549,79.52,14.34137021]
[1771863852026,0.87757144,79.549,79.51,14.34137021]
[1771863852219,0.87757144,79.539,79.511,12.57687615]
[1771863852816,0.87757144,79.539,79.502,12.57829991]
[1771863853233,0.87757144,79.531,79.5,14.84137021]
[1771863853816,0.5,79.532,79.52,15.00614044]
[1771863854022,0.5,79.522,79.52,14.34137021]
[1771863854322,12.57213261,79.541,79.52,14.34137021]
[1771863854736,0.87757144,79.54,79.515,12.57620349]
[1771863855435,0.87757144,79.54,79.511,12.57687615]
[1771863855820,0.5,79.542,79.52,14.34137021]
[1771863856132,0.87757144,79.541,79.511,44.01906653]
[1771863856437,0.87757144,79.54,79.511,12.57687615]
[1771863857415,0.5,79.542,79.521,0.66177546]
[1771863857610,0.5,79.542,79.53,14.34137021]
[1771863857816,0.83026483,79.57,79.531,0.66104814]
[1771863858038,0.83026483,79.569,79.526,0.66104814]
[1771863858241,0.83026483,79.569,79.53,14.34137021]
[1771863858416,0.83026483,79.549,79.52,14.34137021]
[1771863858615,0.83026483,79.549,79.53,14.34137021]
[1771863858816,0.83026483,79.549,79.521,0.66032918]
[1771863859017,0.83026483,79.549,79.52,14.34137021]
[1771863859540,0.83026483,79.547,79.52,26.91675749]
[1771863860036,12.56930799,79.559,79.53,14.34137021]
[1771863860633,14.34137021,79.58,79.541,0.81972546]
[1771863861637,12.56612925,79.579,79.541,12.57213261]
[1771863861955,14.34137021,79.58,79.551,0.81972546]
[1771863862154,0.83827421,79.595,79.57,14.34137021]
[1771863862435,0.83827421,79.579,79.551,0.81972546]
[1771863863843,0.83827421,79.578,79.552,12.5703942]
[1771863866046,0.83827421,79.589,79.552,12.5703942]
[1771863866225,0.83827421,79.589,79.552,13.39011966]
[1771863866726,0.83827421,79.589,79.553,0.81972546]
[1771863867371,0.83827421,79.587,79.561,0.81972546]
[1771863867530,0.83827421,79.598,79.57,5.34518424]
[1771863867738,0.79387674,79.598,79.57,6.1649097]
[1771863868148,0.79387674,79.598,79.571,0.81972546]
[1771863868371,0.79387674,79.598,79.563,0.81972546]
[1771863868543,0.79387674,79.598,79.562,0.81972546]
[1771863869365,0.79387674,79.598,79.571,0.5]
[1771863872354,0.83827421,79.596,79.571,0.5]
[1771863872566,0.83827421,79.596,79.572,12.5672347]
[1771863873592,12.56114582,79.611,79.581,0.81972546]
[1771863873878,0.83827421,79.609,79.581,0.81972546]
[1771863874342,0.83827421,79.609,79.572,43.98532146]
[1771863874343,0.83827421,79.607,79.573,0.81972546]
[1771863876374,0.83827421,79.597,79.572,12.5672347]
[1771863876671,12.56312972,79.598,79.572,12.5672347]
[1771863876672,5.34518424,79.59,79.572,12.5672347]
[1771863876866,0.83827421,79.589,79.571,0.5]
[1771863877972,13.40289392,79.589,79.571,0.5]
[1771863878276,0.83827421,79.588,79.571,0.5]
[1771863879387,13.40298245,79.588,79.571,0.5]
[1771863879764,0.83827421,79.608,79.572,0.81972546]
[1771863879959,0.83827421,79.606,79.574,0.81972546]
[1771863882366,0.83827421,79.599,79.571,1.0]
[1771863882958,5.34518424,79.59,79.571,1.0]
[1771863883165,0.83827421,79.589,79.571,1.0]
[1771863883565,0.83827421,79.589,79.532,5.36086188]
[1771863883566,0.83827421,79.579,79.552,12.57031066]
[1771863883790,0.83827421,79.579,79.555,12.5698598]
[1771863884289,0.33827421,79.579,79.555,12.5698598]
[1771863884886,12.56455037,79.589,79.562,13.38853971]
[1771863885187,12.56455037,79.589,79.562,0.81972546]
[1771863885385,5.34518424,79.58,79.554,0.81972546]
[1771863885892,43.97592631,79.589,79.557,12.56958805]
[1771863886189,0.83827421,79.588,79.557,12.56958805]
[1771863887189,5.34518424,79.58,79.557,12.56958805]
[1771863887390,0.83827421,79.579,79.554,13.38980295]
[1771863889374,0.83827421,79.579,79.551,0.5]
[1771863889375,0.54820807,79.577,79.551,0.5]
[1771863889692,5.34518424,79.57,79.551,0.5]
[1771863890274,5.34518424,79.56,79.535,12.57297042]
[1771863890469,5.34518424,79.56,79.48,50.52708484]
[1771863890470,5.34518424,79.54,79.511,0.85130808]
[1771863891192,94.24715372,79.578,79.511,0.85130808]
[1771863891392,5.34518424,79.56,79.531,0.85130808]
[1771863891894,12.5692882,79.559,79.531,0.85130808]
[1771863892266,13.11583626,79.559,79.531,0.85130808]
[1771863892467,5.34518424,79.55,79.51,5.34518424]
[1771863892665,0.8130643,79.539,79.511,12.57687615]
[1771863893773,0.8130643,79.539,79.5,0.5]
[1771863893778,14.33279297,79.52,79.5,0.5]
[1771863893969,14.33279297,79.52,79.48,0.2]
[1771863894169,14.33279297,79.5,79.48,0.2]
[1771863894793,14.33279297,79.49,79.482,0.85130808]
[1771863895090,14.33279297,79.49,79.44,50.55244591]
[1771863895091,14.33279297,79.49,79.474,0.85130808]
[1771863895489,0.8130643,79.523,79.476,0.85130808]
[1771863895694,0.8130643,79.515,79.476,0.85130808]
[1771863895992,0.8130643,79.515,79.478,0.85130808]
[1771863896495,0.8130643,79.514,79.478,0.85130808]
[1771863897082,12.57571425,79.519,79.478,0.85130808]
[1771863897485,0.8130643,79.518,79.478,0.85130808]
[1771863897889,44.01574506,79.517,79.48,0.85130808]
[1771863898091,0.8130643,79.516,79.48,0.85130808]
[1771863899486,14.33279297,79.51,79.48,0.85130808]
[1771863899684,0.8130643,79.509,79.48,0.85130808]
[1771863899998,0.8130643,79.509,79.482,0.85130808]
[1771863900301,13.39034004,79.509,79.482,0.85130808]
[1771863900602,0.8130643,79.508,79.482,0.85130808]